[Event "Fredericia WIM 2022"]
[Site "Fredericia"]
[Date "2022.05.28"]
[Round "8.2"]
[White "Doluhanova, Evgeniya"]
[Black "Andersson, Christin"]
[Result "1-0"]
[ECO "A05"]
[WhiteElo "2270"]
[BlackElo "2028"]
[Annotator "TA"]
[PlyCount "149"]
[EventDate "2022.05.25"]
[EventType "tourn"]
[EventCountry "DEN"]
[SourceTitle "playchess.com"]
[Source "ChessBase"]
[SourceQuality "1"]
[TimeControl "40/5400+30:1800+30"]

{[%evp 12,149,18,3,12,9,13,8,27,0,0,0,0,0,0,0,0,-8,-10,-5,0,-29,0,0,0,2,12,0,0,0,0,0,0,-74,-55,-97,35,36,33,25,23,23,235,237,240,244,242,225,261,205,200,203,254,233,224,104,174,158,223,213,208,73,75,76,79,66,68,14,33,11,102,95,80,77,134,128,108,108,153,103,103,103,103,103,103,91,123,121,103,103,300,278,217,196,379,372,335,283,294,289,434,425,428,428,409,406,376,331,411,404,1020,1019,950,935,1019,1006,887,516,516,462,1020,444,1408,1257,1158,516,1412,1313,2007,2358,2137,1798,29969,29973,29970,29971,29969,29970,29987,29988]} 1. Nf3 {[%emt 0:04:10]} Nf6 {[%emt 0:00:21]} 2. b3 {[%emt 0:01:05]} d5 {[%emt 0:00:41]} 3. Bb2 {[%emt 0:00:10]} c5 {[%emt 0:01:02]} 4. e3 {[%emt 0:00:04]} Nc6 {[%emt 0:01:20]} 5. Bb5 {[%emt 0:00:06]} Bd7 {[%emt 0:01:08]} 6. O-O {[%emt 0:00:12]} e6 {[%emt 0:02:48]} 7. d3 {[%emt 0:00:19]} a6 {[%emt 0:01:03] A06: Réti Opening: 1 Nf3 d5.} 8. Bxc6 {[%emt 0:00:28]} Bxc6 {[%emt 0:00:17]} 9. Ne5 {[%emt 0:00:04]} Bd6 {[%emt 0:00:58] The position is equal. 9...Bd6 has become a bit dusty these days.} 10. Nd2 {[%emt 0:00:32]} Bxe5 {[%emt 0:02:51]} 11. Bxe5 {[%emt 0:00:09]} O-O {[%emt 0:00:40]} 12. f4 {[%emt 0:00:42]} Nd7 {[%emt 0:01:33]} 13. Bb2 {[%emt 0:04:56]} f6 {[%emt 0:01:24] [#]} 14. Qg4 $146 {[%emt 0:05:09]} ({Predecessor:} 14. Nf3 Qc7 15. Qe1 Rae8 16. Qg3 Rf7 17. Qh3 Nf8 18. Rae1 Ng6 19. g4 d4 20. exd4 Nxf4 {0-1 (26) Meschke,O-Franz,T Bad Zwesten 1997}) 14... Qe7 {[%emt 0:00:59]} 15. Rf3 {[%emt 0:00:28]} e5 {[%emt 0:06:02]} 16. f5 {[%emt 0:00:30]} Rf7 {[%emt 0:02:21]} 17. Rh3 {[%emt 0:01:13]} d4 {[%emt 0:01:31]} 18. e4 {[%emt 0:00:32]} b5 {[%emt 0:01:15]} 19. Rf1 {[%emt 0:00:09]} Nf8 {[%emt 0:02:57]} 20. Bc1 {[%emt 0:03:16]} a5 {[%emt 0:02:03]} 21. Nf3 {[%emt 0:00:32]} a4 {[%emt 0:03:47]} 22. Nh4 {[%emt 0:00:12]} (22. Qh5 $11) 22... axb3 $17 {[%emt 0:06:15]} 23. axb3 {[%emt 0:00:13][%cal Oh4g6]} Bd7 {[%emt 0:02:19]} (23... Qd6 $17) 24. Qh5 $1 $14 {[%emt 0:00:47][%cal Oh4g6]} g5 {[%emt 0:04:31]} 25. fxg6 {[%emt 0:11:36]} hxg6 {[%emt 0:00:56]} 26. Rg3 {[%emt 0:01:14]} Rh7 $2 {[%emt 0:06:06]} (26... Rg7 $1 $11 {and Black stays safe.} 27. Rxg6 (27. Nxg6 Rxg6 28. Rxg6+ Nxg6 $11) 27... Rxg6 28. Nxg6 Nxg6 29. Qxg6+ Qg7) 27. Nxg6 $18 {[%emt 0:00:35]} Rxh5 {[%emt 0:00:41]} 28. Nxe7+ {[%emt 0:00:07]} Kf7 {[%emt 0:01:16]} 29. Nd5 {[%emt 0:00:25]} Ra6 {[%emt 0:01:02]} 30. Rgf3 {[%emt 0:01:32]} f5 {[%emt 0:01:08]} 31. g4 {[%emt 0:01:44]} ({Stronger than} 31. exf5 Bc6 32. c4 dxc3 33. Nxc3 Bxf3 34. Rxf3 Nd7 $11) 31... Rh7 {[%emt 0:03:34]} 32. gxf5 {[%emt 0:00:16]} Bc6 {[%emt 0:01:49]} 33. Nc7 {[%emt 0:00:59]} (33. Bg5 $18 {and White stays clearly on top.}) 33... Ra2 {[%emt 0:01:49]} (33... Ra7 $16) 34. R3f2 {[%emt 0:03:55]} Rg7+ {[%emt 0:00:09]} (34... Ra7 $16) 35. Kh1 {[%emt 0:00:22]} Kf6 {[%emt 0:01:48]} 36. Ne6 {[%emt 0:05:53]} (36. Nd5+ $18 {is more deadly.} Bxd5 37. exd5) 36... Nxe6 $16 {[%emt 0:00:52]} 37. fxe6+ {[%emt 0:00:04]} Kxe6 {[%emt 0:00:29][%cal Oc5c4]} 38. h4 {[%emt 0:00:08]} c4 {[%emt 0:01:45]} 39. bxc4 {[%emt 0:03:27]} ({White should play} 39. Bh6 $14 Rc7 40. Kg1 (40. bxc4 bxc4 41. Kg1 cxd3 $11)) 39... bxc4 $11 {[%emt 0:00:08]} 40. Bg5 {[%emt 0:00:47]} cxd3 {[%emt 0:01:30]} (40... Ra3 $11 {keeps the balance.}) 41. Rf6+ $16 {[%emt 0:32:41]} ({Of course not} 41. cxd3 $6 Rxf2 42. Rxf2 Rf7 $11) 41... Kd7 {[%emt 0:30:29]} 42. cxd3 {[%emt 0:00:03]} Bb5 {[%emt 0:01:40]} (42... Ra3 $142) 43. Rb1 {[%emt 0:01:14]} Bc6 {[%emt 0:02:43]} 44. Rb6 {[%emt 0:02:36]} Ba8 {[%emt 0:01:09]} 45. Kg1 {[%emt 0:09:47]} (45. Rbd6+ $142 Kc7 46. Ra6 Rxa6 47. Rxa6) 45... Ra3 {[%emt 0:01:03]} 46. Ra6 {[%emt 0:00:14] White is more active.} Rxa6 {[%emt 0:00:39]} 47. Rxa6 {[%emt 0:00:05][%mdl 4096] [#] Endgame Ra7+ would kill now. KRB-KRB} Bb7 {[%emt 0:01:00]} 48. Ra7 {[%emt 0:04:03]} Ke6 {[%emt 0:02:38]} 49. Kf2 {[%emt 0:01:19]} Rf7+ {[%emt 0:00:45]} 50. Kg3 {[%emt 0:01:34]} Bc8 $2 {[%emt 0:01:07]} (50... Rh7 $16 51. Bd2 Rg7+ 52. Kf2 Rf7+ 53. Ke2 Rh7) 51. Ra8 $18 {[%emt 0:02:28]} Bb7 {[%emt 0:03:07]} 52. Rh8 {[%emt 0:08:21]} Rf1 $2 {[%emt 0:04:04]} (52... Rg7 {is a better defense.} 53. Kg4 Kf7) 53. Rh6+ {[%emt 0:00:13]} Kd7 {[%emt 0:00:38]} 54. Rh7+ {[%emt 0:00:15]} Kc6 {[%emt 0:00:48]} 55. Re7 {[%emt 0:05:37] Re6+ is the strong threat.} Ba6 {[%emt 0:01:57]} (55... Rd1 $142 56. Rxe5 Rxd3+ 57. Kg4 Bc8+ 58. Kf4 Rh3) 56. Re6+ {[%emt 0:00:08]} Kb7 {[%emt 0:00:20]} 57. Rxe5 {[%emt 0:00:29]} Bxd3 {[%emt 0:00:07]} 58. h5 {[%emt 0:00:49][%cal Bh4h5,Bh5h6][%mdl 32]} Rg1+ {[%emt 0:02:54]} 59. Kf2 {[%emt 0:00:27]} Rh1 {[%emt 0:03:40]} 60. h6 {[%emt 0:00:36]} Rh5 {[%emt 0:01:01]} (60... Kc6 $142 61. Bf4 Bc2) 61. Kf3 {[%emt 0:01:15]} Kc6 {[%emt 0:02:53]} 62. Kg4 {[%emt 0:04:54]} Be2+ {[%emt 0:00:24]} 63. Kf5 {[%emt 0:01:50]} d3 {[%emt 0:01:00]} 64. Kf6 {[%emt 0:00:20]} Bf3 {[%emt 0:01:18]} 65. Be3 {[%emt 0:03:02] [#] Intending Rxh5 and mate.} Rh4 {[%emt 0:01:28]} (65... Rh3 $142 66. Rc5+ Kb7) 66. Kf5 {[%emt 0:01:38]} (66. Rc5+ $142 Kb7 67. e5) 66... Kd6 {[%emt 0:01:47]} (66... Rh5+ $142 67. Kf4 Rh3) 67. Rd5+ {[%emt 0:01:02]} Kc6 {[%emt 0:00:57]} 68. Rd4 {[%emt 0:00:27]} (68. Bf4 $142 Be2 69. Rd6+ Kc5 70. e5) 68... Be2 {[%emt 0:00:53]} (68... Kc5 $142 69. Rxd3+ Kb5) 69. Bg5 {[%emt 0:00:54]} Rh1 {[%emt 0:01:09]} 70. Kg6 {[%emt 0:01:58] aiming for h7.} Bh5+ {[%emt 0:01:03]} 71. Kg7 {[%emt 0:00:55] Strongly threatening h7.} Rg1 {[%emt 0:01:49]} 72. h7 {[%emt 0:03:29] White mates.} Rxg5+ {[%emt 0:00:15]} 73. Kh6 {[%emt 0:00:04]} Rg6+ {[%emt 0:01:52]} 74. Kxh5 {[%emt 0:00:08]} Rg3 {[%emt 0:00:12]} 75. Kh4 {[%emt 0:00:29] Weighted Error Value: White=0.16 (very precise) /Black=0.37} 1-0

[Event "Fredericia WIM 2022"]
[Site "Fredericia"]
[Date "2022.05.28"]
[Round "8.3"]
[White "Lach, Aleksandra"]
[Black "Goossens, Hanne"]
[Result "1-0"]
[ECO "B23"]
[WhiteElo "2202"]
[BlackElo "2184"]
[Annotator "TA"]
[PlyCount "105"]
[EventDate "2022.05.25"]
[EventType "tourn"]
[EventCountry "DEN"]
[SourceTitle "playchess.com"]
[Source "ChessBase"]
[SourceQuality "1"]
[TimeControl "40/5400+30:1800+30"]

{[%evp 9,105,27,22,21,18,16,28,0,24,-20,-28,-31,-11,-52,-26,-26,-32,-29,-21,-25,-17,-16,-16,-22,0,0,15,0,7,11,5,-68,-54,-84,-63,-104,-77,-75,-66,-63,-64,-107,-4,-91,-59,-55,-51,-122,-123,-123,-86,-146,-156,-149,-133,-227,-78,-241,39,39,25,-6,0,0,0,0,0,0,0,-323,-318,-284,-16,-20,-29,-39,12843,12843,12844,0,12845,0,0,0,12845,12845,12845,12846,29986,12845,12845,12845,12846,12846,12847,12847,29998,29999]} 1. e4 {[%emt 0:00:10]} c5 {[%emt 0:00:04]} 2. Nc3 {[%emt 0:00:29]} a6 {[%emt 0:00:30]} 3. Nge2 {[%emt 0:02:24]} d6 {[%emt 0:00:58]} 4. g3 {[%emt 0:02:19]} Nc6 {[%emt 0:02:15]} 5. Bg2 {[%emt 0:01:49]} g6 {[%emt 0:00:54]} 6. d3 {[%emt 0:02:43] B23: Closed Sicilian: Lines without g3.} Bg7 {[%emt 0:01:50]} 7. O-O {[%emt 0:00:16]} Bd7 {[%emt 0:00:59]} 8. f4 {[%emt 0:06:24] White has an edge.} e6 {[%emt 0:04:05]} 9. h3 {[%emt 0:07:41] [#]} Nge7 $146 {[%emt 0:00:35]} ({Predecessor:} 9... f5 10. Be3 Bd4 11. Bf2 Bxf2+ 12. Rxf2 Qf6 13. Qd2 Nge7 14. Re1 O-O 15. Kh2 Rab8 {½-½ (65) Paulic,B (2240)-Kosovac,M (2050) Belgrade 2007}) 10. a4 {[%emt 0:03:35]} Rb8 {[%emt 0:01:49]} 11. g4 {[%emt 0:02:08]} f5 {[%emt 0:02:23]} 12. Ng3 {[%emt 0:06:39]} O-O {[%emt 0:03:47]} 13. Nce2 {[%emt 0:13:58]} b5 {[%emt 0:06:08]} 14. axb5 {[%emt 0:00:58]} axb5 {[%emt 0:00:07]} 15. c3 {[%emt 0:02:17]} b4 {[%emt 0:12:44]} 16. Be3 {[%emt 0:13:52]} bxc3 {[%emt 0:04:12]} 17. bxc3 {[%emt 0:00:06]} Qb6 {[%emt 0:01:42]} 18. Rc1 {[%emt 0:03:15]} Na5 {[%emt 0:20:51]} 19. gxf5 {[%emt 0:07:47]} exf5 {[%emt 0:02:00]} 20. Qe1 {[%emt 0:02:04]} (20. exf5 $11 Nxf5 21. Nxf5 gxf5 22. Rb1) 20... fxe4 $15 {[%emt 0:09:08]} 21. dxe4 {[%emt 0:00:56][%cal Of4f5]} Nc4 {[%emt 0:00:34]} 22. Qf2 {[%emt 0:00:20]} Bc6 {[%emt 0:01:47]} 23. Rcd1 {[%emt 0:04:49]} Qb7 {[%emt 0:03:42][%cal Oe7f5]} 24. Bc1 {[%emt 0:01:34]} Ba4 {[%emt 0:01:44]} 25. e5 {[%emt 0:02:19] [#]} d5 {[%emt 0:04:16]} (25... Qc7 $1 $17 26. exd6 Nxd6) 26. Rde1 {[%emt 0:00:30]} (26. Qxc5 $11 {remains equal.} Bxd1 27. Rxd1) 26... Qc7 {[%emt 0:05:36]} 27. Bf3 {[%emt 0:00:26]} Kh8 {[%emt 0:01:10]} 28. Be3 {[%emt 0:02:17]} (28. h4 $1 $15) 28... Nxe3 $17 {[%emt 0:00:41]} 29. Qxe3 {[%emt 0:00:02]} Bb5 {[%emt 0:00:42] This bishop pair is nice.} 30. Rf2 {[%emt 0:02:27]} (30. h4 $142) 30... Bc4 {[%emt 0:00:47]} 31. h4 {[%emt 0:01:55]} Bh6 {[%emt 0:02:38]} 32. Bg4 {[%emt 0:01:05]} (32. Bg2 $17) 32... Bb5 {[%emt 0:01:21]} (32... Rb3 $19 {[%cal Od5d4] and Black stays clearly on top. aiming for ...d4!} 33. Nf1 d4) 33. Kh2 $2 {[%emt 0:01:29]} (33. h5 $17) 33... Nf5 $2 {[%emt 0:02:11]} ({Better is} 33... d4 $19 34. cxd4 Nd5) 34. Bxf5 $14 {[%emt 0:00:26]} gxf5 {[%emt 0:00:03]} 35. Qf3 {[%emt 0:00:08]} Qf7 {[%emt 0:01:00]} 36. Ng1 {[%emt 0:02:16]} Rg8 {[%emt 0:00:30] And now ...Rg4 would win.} 37. Nh3 {[%emt 0:01:51]} Rg4 {[%emt 0:00:25]} 38. e6 {[%emt 0:00:26]} Qf6 {[%emt 0:00:59] ...Rbg8 is the strong threat.} 39. Qxd5 $2 {[%emt 0:00:18][%mdl 8192] [#]} (39. Ng5 $1 $11 Rxh4+ 40. Kg2) 39... Rxg3 $1 $19 {[%emt 0:00:56][%mdl 512]} 40. Ng5 {[%emt 0:03:02]} Bxg5 $2 {[%emt 0:00:31]} 41. fxg5 $11 {[%emt 0:30:25]} Qxc3 {[%emt 0:30:25]} 42. Qxf5 {[%emt 0:00:21] Active counter play!} Re3 $2 {[%emt 0:01:36][%mdl 8192]} (42... Bc6 $15 43. Rb1 {[#]} (43. Qf6+ $2 Qxf6 44. gxf6 Rbb3 $19) 43... Rh3+ $3 {[%mdl 512]} 44. Qxh3 Qxh3+ 45. Kxh3 Rxb1 46. Rf8+ Kg7) 43. Rxe3 $18 {[%emt 0:00:29][%mdl 64] Deflection} Qxe3 {[%emt 0:00:02]} 44. Qf6+ {[%emt 0:00:21]} Kg8 {[%emt 0:00:04]} 45. Qf7+ {[%emt 0:00:25]} Kh8 {[%emt 0:00:05] Strongly threatening ...Qe5+.} 46. Qf6+ {[%emt 0:00:04]} Kg8 {[%emt 0:00:01]} 47. e7 {[%emt 0:01:19] White wants to mate with Qf8+.} Qxf2+ {[%emt 0:01:38]} 48. Qxf2 {[%emt 0:00:01] Threatening mate with h5. KQ-KRB} Bc4 {[%emt 0:00:48]} 49. Qxc5 {[%emt 0:00:56]} (49. h5 $142 Bf7 50. h6 Bd5 51. Qf6 Rb2+ 52. Qxb2 Kf7 53. Qg7+ Ke8 54. Qf8+ Kd7 55. e8=Q+ Kc7 56. Qc8+ Kb6 57. Qfxc5#) 49... Bf7 {[%emt 0:00:13]} 50. Qe5 {[%emt 0:00:25]} Re8 {[%emt 0:00:20]} 51. Kg3 {[%emt 0:00:17]} Ra8 {[%emt 0:00:38]} 52. h5 {[%emt 0:00:45][%cal Bh4h5,Bh5h6][%mdl 32] White threatens h6 and mate.} Re8 {[%emt 0:01:16]} 53. h6 {Weighted Error Value: White=0.58/Black=0.78} 1-0

[Event "Fredericia WIM 2022"]
[Site "Fredericia"]
[Date "2022.05.29"]
[Round "9.1"]
[White "Dwilewicz, Katarzyna"]
[Black "Lach, Aleksandra"]
[Result "1/2-1/2"]
[ECO "B36"]
[WhiteElo "2079"]
[BlackElo "2202"]
[Annotator "TA"]
[PlyCount "61"]
[EventDate "2022.05.25"]
[EventType "tourn"]
[EventCountry "DEN"]
[SourceTitle "playchess.com"]
[Source "ChessBase"]
[SourceQuality "1"]
[TimeControl "40/5400+30:1800+30"]

{[%evp 18,61,50,54,51,38,31,20,28,24,37,17,17,26,20,30,16,23,14,28,23,12,11,5,5,5,5,5,4,1,1,1,1,0,3,0,4,0,7,0,4,0,4,0,7,0]} 1. e4 {[%emt 0:00:04]} c5 {[%emt 0:00:10]} 2. Nf3 {[%emt 0:00:14]} Nc6 {[%emt 0:00:19]} 3. d4 {[%emt 0:00:22]} cxd4 {[%emt 0:00:30]} 4. Nxd4 {[%emt 0:00:09]} g6 {[%emt 0:00:19]} 5. c4 {[%emt 0:00:33]} Nf6 {[%emt 0:01:10]} 6. Nc3 {[%emt 0:01:50]} d6 {[%emt 0:00:33]} 7. Be2 {[%emt 0:01:33]} Nxd4 {[%emt 0:01:10]} 8. Qxd4 {[%emt 0:00:08]} Bg7 {[%emt 0:00:06]} 9. Be3 {[%emt 0:00:55]} O-O {[%emt 0:01:03]} 10. Qd2 {[%emt 0:00:22]} a5 {[%emt 0:00:51] B36: Sicilian: Maroczy Bind: Gurgenidze System.} 11. Rc1 {[%emt 0:00:38]} a4 {[%emt 0:00:25]} 12. f3 {[%emt 0:00:31] 12.f3 is better than 12.0-0.} Qa5 {[%emt 0:00:30]} 13. Rc2 {[%emt 0:00:43]} Be6 {[%emt 0:00:15]} 14. Nd5 {[%emt 0:01:40]} Nxd5 {[%emt 0:00:56]} 15. cxd5 {[%emt 0:00:42]} Rfc8 {[%emt 0:00:18] [#] White must now prevent ...Rxc2.} 16. Qxa5 {[%emt 0:01:02]} (16. Kd1 {feels hotter.} Bd7 17. Qxa5 Rxa5 18. Rxc8+ Bxc8 19. Kc2) 16... Rxa5 {[%emt 0:00:11]} 17. Kd2 {[%emt 0:00:39]} Rxc2+ {[%emt 0:00:16]} 18. Kxc2 {[%emt 0:00:06]} Bd7 {[%emt 0:00:03]} 19. Rc1 {[%emt 0:00:42] White wants to play Kd2.} e6 {[%emt 0:00:35] The position is equal.} 20. Rd1 {[%emt 0:00:11]} exd5 {[%emt 0:00:08]} 21. Rxd5 {[%emt 0:00:09]} Rxd5 {[%emt 0:00:11]} 22. exd5 $11 {[%emt 0:00:06][%mdl 4096] Endgame KBB-KBB} Kf8 {[%emt 0:00:04] [#]} 23. Bd3 $146 {[%emt 0:00:26]} ({Predecessor:} 23. b3 Ke7 24. Bg5+ Ke8 25. Be3 Ke7 26. Bg5+ Ke8 27. Be3 Ke7 {½-½ (27) Froewis,G (2421)-Koepke,C (2331) Austria 2019}) 23... Ke7 {[%emt 0:00:38]} 24. Bg5+ {[%emt 0:00:19]} Ke8 {[%emt 0:00:15]} 25. Be3 {[%emt 0:00:13]} Ke7 {[%emt 0:00:22]} 26. Bg5+ {[%emt 0:00:06]} Ke8 {[%emt 0:00:09]} 27. Be3 {[%emt 0:00:06]} Ke7 {[%emt 0:00:22]} 28. Bg5+ {[%emt 0:00:06]} Ke8 {[%emt 0:00:17]} 29. Be3 {[%emt 0:00:08]} Ke7 {[%emt 0:00:03]} 30. Bg5+ {[%emt 0:00:06]} Ke8 {[%emt 0:00:02]} 31. Be3 {[%emt 0:00:08] Weighted Error Value: White=0.04 (flawless) /Black=0.00 (flawless)} 1/2-1/2

[Event "Fredericia WIM 2022"]
[Site "Fredericia"]
[Date "2022.05.29"]
[Round "9.2"]
[White "Durrfeld, Sofie Bech"]
[Black "Doluhanova, Evgeniya"]
[Result "0-1"]
[ECO "C24"]
[WhiteElo "1773"]
[BlackElo "2270"]
[Annotator "TA"]
[PlyCount "74"]
[EventDate "2022.05.25"]
[EventType "tourn"]
[EventCountry "DEN"]
[SourceTitle "playchess.com"]
[Source "ChessBase"]
[SourceQuality "1"]
[TimeControl "40/5400+30:1800+30"]

{[%evp 9,74,-4,24,18,17,0,0,0,0,-34,-8,-2,3,0,0,-161,-178,-135,-160,-197,-193,-172,-192,-216,-224,-195,-216,-177,-204,-251,-255,-248,-251,-241,-239,-328,-328,-323,-331,-375,-356,-417,-424,-454,-423,-518,-519,-497,-492,-587,-585,-516,-575,-535,-498,-721,-722,-726,-724,-672,-713,-645,-600,-29984,-29985,-29983,-29984]} 1. e4 {[%emt 0:00:02]} e5 {[%emt 0:00:17]} 2. Bc4 {[%emt 0:00:07]} Nf6 {[%emt 0:03:21]} 3. d3 {[%emt 0:00:08]} Bc5 {[%emt 0:00:54]} 4. Nc3 {[%emt 0:00:24]} Nc6 {[%emt 0:00:45]} 5. f4 {[%emt 0:00:33]} Bxg1 {[%emt 0:01:53]} 6. Rxg1 {[%emt 0:00:15] C28: Vienna Game: 2...Nf6 3 Bc4 Nc6.} d6 {[%emt 0:00:25]} 7. f5 {[%emt 0:03:08]} Nd4 {[%emt 0:03:53]} 8. a3 {[%emt 0:07:13] The position is equal.} c6 {[%emt 0:02:30] [#]} 9. Bg5 $146 {[%emt 0:04:44]} ({Predecessor:} 9. g4 h6 10. h3 d5 11. Ba2 dxe4 12. dxe4 b6 13. Qd3 Nd7 14. Rg2 Qh4+ 15. Kd1 {0-1 (40) Ott,P (2004)-Hebel,E (1979) GER email 2015}) 9... Qb6 {[%emt 0:03:07][%cal Od4c2] [#] White must now prevent ...Nxc2+!} (9... h6 $5 {[%cal Rh6g5]} 10. Bh4 d5 $15) 10. Kd2 {[%emt 0:07:29]} d5 {[%emt 0:04:09]} 11. Bxf6 {[%emt 0:08:21]} gxf6 {[%emt 0:01:00]} 12. Bb3 {[%emt 0:07:24] White is now going downhill.} (12. exd5 $11 {and White has nothing to worry.} Bxf5 13. b4 (13. g4 Bg6 $11)) 12... dxe4 $19 {[%emt 0:03:33]} 13. Nxe4 {[%emt 0:02:21]} Bxf5 {[%emt 0:01:36]} (13... Nxf5 14. Qf3 Qa5+ 15. Kc1 $16) 14. Nd6+ {[%emt 0:02:19] [#]} Ke7 $1 {[%emt 0:00:55]} 15. Nxf5+ {[%emt 0:01:59]} Nxf5 {[%emt 0:00:06] Really sharp!} 16. Re1 {[%emt 0:07:05] Prevents Qe3+.} Qf2+ {[%emt 0:03:28]} 17. Kc1 {[%emt 0:05:55]} Nd4 {[%emt 0:02:58]} 18. Kb1 {[%emt 0:02:42]} Rhg8 {[%emt 0:02:57][%cal Bh8g8,Bg8g4,Bg4f4][%mdl 32]} 19. g4 {[%emt 0:05:38]} Nxb3 {[%emt 0:00:53]} ({Don't go for} 19... Qxh2 $2 20. c3 Nxb3 21. Qxb3 $19) 20. cxb3 {[%emt 0:00:14]} Rad8 {[%emt 0:01:34]} ({Avoid the trap} 20... Qxh2 $2 21. Qf3) 21. Ka2 {[%emt 0:01:12]} Qd4 {[%emt 0:00:21]} ({Not} 21... Qxh2 22. Qf3) 22. Qc2 {[%emt 0:03:49]} Rxg4 {[%emt 0:00:46]} 23. Rad1 {[%emt 0:01:00]} c5 {[%emt 0:01:02]} 24. h3 {[%emt 0:01:55]} Rf4 {[%emt 0:00:09]} 25. Re2 {[%emt 0:01:38]} b6 {[%emt 0:00:20]} 26. Qd2 {[%emt 0:01:03]} a5 {[%emt 0:02:14]} 27. Rc1 {[%emt 0:02:03] aiming for Rc4.} Qxd3 {[%emt 0:01:39]} 28. Qxf4 {[%emt 0:02:00] Qg4 is the strong threat.} Qxe2 {[%emt 0:00:06][%mdl 4096] Endgame KQR-KQR} 29. Qh4 {[%emt 0:00:56]} Rd2 {[%emt 0:00:28]} 30. Rb1 {[%emt 0:00:22]} h5 {[%emt 0:00:06][%cal Bh7h5,Bh5h4][%mdl 32] Hoping for ...Rd4.} 31. Qa4 {[%emt 0:00:33]} Rd6 {[%emt 0:02:57] Against Qc6} 32. Qh4 {[%emt 0:00:42]} (32. Rg1 $142 Rd2 33. Rb1) 32... Rd4 {[%emt 0:03:51]} 33. Qg3 {[%emt 0:00:53]} h4 {[%emt 0:00:40]} 34. Qg8 {[%emt 0:00:42]} Rd8 {[%emt 0:01:20]} 35. Qh7 {[%emt 0:00:32]} a4 {[%emt 0:00:19]} 36. Qxh4 {[%emt 0:03:11]} axb3+ {[%emt 0:00:06]} 37. Kxb3 {[%emt 0:00:26]} Rd4 {[%emt 0:00:12] Weighted Error Value: White=0.35/Black=0.03 (flawless)} 0-1